bitfinex/quotes_BTCUSD_20241223
["timestamp","ask_amount","ask_price","bid_price","bid_amount"]
[1734964757386,0.210541,94994.0,94961.0,0.00024596]
[1734964757387,0.10530243,94979.0,94961.0,0.00024596]
[1734964757590,0.210594,94970.0,94961.0,0.00024596]
[1734964757795,0.00131622,94969.0,94961.0,0.00024596]
[1734964757988,0.421176,94972.0,94961.0,0.00024596]
[1734964758253,0.210592,94970.0,94961.0,0.00024596]
[1734964758553,0.210597,94968.0,94961.0,0.00024596]
[1734964758768,0.10398632,94979.0,94961.0,0.00324596]
[1734964758974,0.21061,94962.0,94961.0,0.00324596]
[1734964759180,0.21061,94962.0,94961.0,0.00024596]
[1734964759181,0.31459632,94962.0,94961.0,0.00024596]
[1734964760733,0.31459632,94962.0,94919.0,0.210704]
[1734964760734,0.1,94957.0,94899.0,0.1783]
[1734964760948,0.210683,94929.0,94928.0,0.00016036]
[1734964761366,0.286583,94929.0,94928.0,0.00016036]
[1734964761582,0.39056932,94929.0,94928.0,0.00016036]
[1734964762211,0.39056932,94929.0,94928.0,0.00316036]
[1734964762413,0.39056932,94929.0,94928.0,0.00016036]
[1734964762876,0.39856932,94929.0,94928.0,0.00016036]
[1734964763735,0.294583,94929.0,94928.0,0.00116036]
[1734964763988,0.008,94929.0,94928.0,0.00116036]
[1734964764190,0.008,94929.0,94928.0,0.00016036]
[1734964764402,0.01,94929.0,94928.0,0.00016036]
[1734964765021,0.008,94929.0,94928.0,0.00016036]
[1734964765236,0.009,94929.0,94928.0,0.00016036]
[1734964765446,0.014,94929.0,94928.0,0.00016036]
[1734964765848,0.006,94929.0,94928.0,0.00016036]
[1734964766058,0.007,94929.0,94928.0,0.00116036]
[1734964766210,0.01850067,94929.0,94928.0,0.00016036]
[1734964766559,0.01750067,94929.0,94913.0,0.210718]
[1734964766770,0.01850067,94929.0,94928.0,0.00504235]
[1734964766976,0.001,94929.0,94928.0,0.001]
[1734964767233,0.10598632,94929.0,94907.0,0.23141704]
[1734964767398,0.210701,94921.0,94907.0,0.21073]
[1734964767593,0.210701,94921.0,94908.0,0.00547003]
[1734964768129,0.52535732,94928.0,94909.0,0.210728]
[1734964768340,0.002,94929.0,94916.0,0.210712]
[1734964768544,0.002,94929.0,94910.0,0.2534178]
[1734964768545,0.002,94929.0,94910.0,0.0426928]
[1734964768751,0.002,94929.0,94911.0,0.0005281]
[1734964768963,0.21067,94935.0,94911.0,0.0005281]
[1734964769167,0.001,94929.0,94911.0,0.210722]
[1734964769505,0.001,94929.0,94912.0,0.210721]
[1734964769726,0.001,94929.0,94911.0,0.10398632]
[1734964769926,0.002,94929.0,94911.0,0.10398632]
[1734964770155,0.210679,94932.0,94918.0,0.210707]
[1734964770349,0.210663,94938.0,94918.0,0.210707]
[1734964770557,0.00015991,94940.0,94923.0,0.210696]
[1734964770925,0.210661,94939.0,94923.0,0.210696]
[1734964771175,0.421323,94939.0,94919.0,0.21476633]
[1734964771403,0.210673,94934.0,94919.0,0.14229435]
[1734964771577,0.210673,94934.0,94920.0,0.00717003]
[1734964771804,0.002,94938.0,94919.0,0.210704]
[1734964772061,0.001,94929.0,94927.0,0.210687]
[1734964772476,0.001,94929.0,94928.0,0.00409068]
[1734964772904,0.210674,94934.0,94928.0,0.00409068]
[1734964773114,0.00131679,94933.0,94914.0,0.210716]
[1734964773316,0.002,94938.0,94918.0,0.210706]
[1734964773533,0.002,94938.0,94907.0,0.01233055]
[1734964773534,0.15359696,94930.0,94915.0,0.00410757]
[1734964773747,0.15359696,94920.0,94919.0,0.00410531]
[1734964773977,0.1,94915.0,94866.0,0.00575744]
[1734964774181,0.15359696,94890.0,94876.0,0.02154251]
[1734964774386,0.15359696,94900.0,94876.0,0.02154251]
[1734964774664,0.25758328,94900.0,94876.0,0.02154251]
[1734964774856,0.25758328,94900.0,94878.0,0.210796]
[1734964775066,0.21075,94899.0,94883.0,0.210784]
[1734964775275,0.210743,94902.0,94876.0,0.02154251]
[1734964775477,0.360705,94919.0,94876.0,0.02154251]
[1734964775478,0.210759,94895.0,94876.0,0.02154251]
[1734964775633,0.210769,94891.0,94876.0,0.00053471]
[1734964775838,0.15491427,94890.0,94876.0,0.00053471]
[1734964776037,0.18168632,94894.0,94877.0,0.210799]
[1734964776262,0.2120824,94893.0,94877.0,0.210799]
[1734964776439,0.10398632,94893.0,94876.0,0.00053471]
[1734964776644,0.10530372,94893.0,94876.0,0.00053471]
[1734964777067,0.210779,94887.0,94876.0,0.00053471]
[1734964777447,0.210768,94891.0,94878.0,8.56e-05]
[1734964777812,0.288462,94894.0,94879.0,0.210794]
[1734964778001,0.210762,94894.0,94878.0,8.56e-05]
[1734964778234,0.210764,94893.0,94878.0,0.0233615]
[1734964778487,0.002,94894.0,94879.0,0.210794]
[1734964778894,0.210763,94893.0,94879.0,0.210794]
[1734964779109,0.21074,94904.0,94883.0,0.210784]
[1734964779110,0.210751,94899.0,94883.0,0.210784]
[1734964779316,0.002,94894.0,94878.0,8.56e-05]
[1734964779540,0.210763,94893.0,94879.0,0.210793]
[1734964779964,0.210776,94888.0,94878.0,8.56e-05]
[1734964780169,0.31474932,94893.0,94878.0,0.2108806]
[1734964780381,0.210758,94896.0,94879.0,0.210794]
[1734964780586,0.00131735,94895.0,94878.0,8.56e-05]
[1734964780798,0.210761,94894.0,94880.0,0.210792]
[1734964781008,0.210742,94903.0,94885.0,0.210781]
[1734964781215,0.0785,94910.0,94896.0,0.210755]
[1734964781417,0.0785,94910.0,94880.0,0.10398632]
[1734964781418,0.10398632,94909.0,94887.0,0.210775]
[1734964781647,0.10398632,94909.0,94878.0,8.56e-05]
[1734964781648,0.1053035,94909.0,94879.0,0.210792]
[1734964781872,0.21076,94895.0,94879.0,0.210792]
[1734964782523,0.210761,94894.0,94878.0,8.56e-05]
[1734964782730,0.002,94896.0,94878.0,0.023361]
[1734964782955,0.210737,94905.0,94887.0,0.210776]
[1734964783136,0.210737,94905.0,94883.0,0.210784]
[1734964783137,0.10998632,94909.0,94891.0,0.210767]
[1734964783341,0.006,94909.0,94878.0,0.023361]
[1734964783556,0.006,94909.0,94903.0,0.21074]
[1734964783760,0.006,94909.0,94899.0,0.210749]
[1734964783967,0.006,94909.0,94893.0,0.210762]
[1734964784198,0.006,94909.0,94896.0,0.210757]
[1734964784610,0.006,94909.0,94905.0,0.210735]
[1734964784835,0.288893,94925.0,94909.0,0.421453]
[1734964784836,0.00131699,94924.0,94909.0,0.421453]
[1734964785036,0.210697,94923.0,94909.0,0.210726]
[1734964785395,0.210697,94923.0,94896.0,0.10398632]
[1734964785396,0.00131692,94922.0,94905.0,0.210734]
[1734964785605,0.001,94909.0,94905.0,0.210734]
[1734964785879,0.210694,94924.0,94905.0,0.42147]
[1734964786164,0.1,94952.0,94914.0,0.210716]
[1734964786165,0.210683,94930.0,94914.0,0.210716]
[1734964786369,0.210685,94928.0,94898.0,0.210752]
[1734964786570,0.00131687,94927.0,94899.0,0.10398632]
[1734964786713,0.002,94923.0,94918.0,0.210707]
[1734964787119,0.002,94923.0,94918.0,0.421414]
[1734964787548,0.002,94923.0,94919.0,0.10398632]
[1734964787756,0.002,94923.0,94915.0,0.02128304]
[1734964787928,0.210718,94914.0,94885.0,0.15]
[1734964788128,0.00131697,94913.0,94886.0,0.10398632]
[1734964788330,0.210736,94906.0,94888.0,0.210773]
[1734964788528,0.210721,94912.0,94889.0,0.10398632]
[1734964788815,0.21071,94917.0,94894.0,0.02068351]
[1734964788991,0.210714,94915.0,94899.0,0.210749]
[1734964789222,0.00131704,94914.0,94895.0,0.210759]
[1734964789415,0.210718,94914.0,94895.0,0.210759]
[1734964789565,0.001,94906.0,94895.0,0.210759]
[1734964790014,0.210721,94912.0,94895.0,0.210759]
[1734964790217,0.210718,94914.0,94895.0,0.210759]
[1734964790492,0.210721,94912.0,94895.0,0.210759]
[1734964790618,0.210718,94914.0,94895.0,0.210759]
[1734964790823,0.00131704,94913.0,94896.0,0.210757]
[1734964791031,0.210721,94912.0,94896.0,0.210757]
[1734964791247,0.210723,94911.0,94894.0,0.02168351]
[1734964791466,0.210719,94913.0,94899.0,0.002]
[1734964791667,0.210701,94921.0,94905.0,0.210735]
[1734964791847,0.00131695,94920.0,94895.0,0.001]
[1734964792043,0.002,94913.0,94900.0,0.210747]
[1734964792382,0.210708,94918.0,94901.0,0.210745]
[1734964792567,0.001,94911.0,94901.0,0.210745]
[1734964793132,0.004,94913.0,94901.0,0.210745]
[1734964793327,0.21472,94913.0,94896.0,0.210756]
[1734964793726,0.004,94913.0,94897.0,0.10398632]
[1734964793939,0.004,94913.0,94910.0,0.210725]
[1734964794354,0.004,94913.0,94912.0,0.210721]
[1734964794562,0.0001712,94925.0,94912.0,0.10398632]
[1734964794767,0.10398632,94924.0,94894.0,0.02073629]
[1734964794972,0.00131699,94923.0,94901.0,0.001]
[1734964795175,0.210694,94924.0,94895.0,0.11605995]
[1734964795328,0.210705,94920.0,94904.0,0.210739]
[1734964795534,0.001,94913.0,94912.0,0.002]
[1734964795734,0.001,94913.0,94896.0,0.210757]
[1734964795937,0.21073,94908.0,94894.0,0.02073629]
[1734964796168,0.001,94913.0,94894.0,0.02073629]
[1734964796377,0.210721,94912.0,94895.0,0.210759]
[1734964796532,0.210715,94915.0,94912.0,0.001]
[1734964796759,0.210719,94913.0,94912.0,0.001]
[1734964797885,0.01650381,94915.0,94903.0,0.210739]
[1734964798070,0.0001712,94925.0,94919.0,0.210704]
[1734964798392,0.0001712,94925.0,94915.0,0.210712]
[1734964798604,0.0001712,94925.0,94919.0,0.210704]
[1734964798824,0.0001712,94925.0,94912.0,0.001]
[1734964799041,0.210706,94919.0,94887.0,0.015]
[1734964799247,0.210706,94919.0,94897.0,0.01224367]
[1734964799454,0.210706,94919.0,94901.0,0.210745]
[1734964799864,0.210706,94919.0,94905.0,0.02143311]
[1734964800435,0.00131692,94918.0,94900.0,0.210747]
[1734964800647,0.210732,94908.0,94892.0,0.02060145]
[1734964800853,0.078,94917.0,94892.0,0.02060145]
[1734964800854,0.00131706,94907.0,94892.0,0.02060145]
[1734964801068,0.210746,94901.0,94887.0,0.015]
[1734964801296,0.42281327,94900.0,94897.0,0.001]
[1734964801505,0.210774,94888.0,94887.0,0.015]
[1734964801724,0.31476032,94888.0,94887.0,0.015]
[1734964802133,0.39266032,94888.0,94887.0,0.015]
[1734964802342,0.1,94884.0,94863.0,0.00097727]
[1734964802569,0.25398632,94888.0,94853.0,0.11845988]
[1734964802570,0.395643,94857.0,94853.0,0.11845988]
[1734964802777,0.49890458,94856.0,94853.0,0.05479273]
[1734964802986,0.15363667,94866.0,94820.0,0.18049089]
[1734964802987,0.210879,94841.0,94820.0,0.18049089]
[1734964803197,0.210923,94821.0,94820.0,0.18049089]
[1734964803399,0.31490932,94821.0,94820.0,0.18049089]
[1734964804068,0.0005322,94821.0,94820.0,0.18049089]
[1734964804280,1.27080548,94821.0,94817.0,8.58e-05]
[1734964804741,0.00131838,94820.0,94817.0,8.58e-05]
[1734964804953,1.27180548,94821.0,94820.0,0.003]
[1734964805212,1.5867158,94821.0,94817.0,8.58e-05]
[1734964805432,0.22788632,94818.0,94802.0,8.58e-05]
[1734964805649,0.15,94810.0,94802.0,8.58e-05]
[1734964805872,0.210963,94803.0,94802.0,8.58e-05]
[1734964806062,0.211012,94781.0,94780.0,0.0007]
[1734964806296,0.31499832,94781.0,94780.0,0.0007]
[1734964806509,0.31499832,94781.0,94750.0,0.18102443]
[1734964806510,0.15363667,94760.0,94750.0,0.18102443]
[1734964806722,0.361079,94751.0,94750.0,0.09792443]
[1734964806940,0.46506532,94751.0,94750.0,0.09792443]
[1734964807143,0.10398632,94751.0,94750.0,0.09792443]
[1734964807355,0.211061,94759.0,94750.0,0.09792443]
[1734964807565,0.211061,94759.0,94750.0,0.09322443]
[1734964807566,0.55229273,94759.0,94750.0,0.09322443]
[1734964807794,0.55229273,94759.0,94742.0,0.211097]
[1734964807976,0.55229273,94759.0,94749.0,0.211082]
[1734964808222,0.55229273,94759.0,94743.0,0.211096]
[1734964808434,0.01,94751.0,94724.0,0.211138]
[1734964808637,0.003,94751.0,94730.0,0.211125]
[1734964808882,0.00053187,94760.0,94748.0,0.211086]
[1734964809101,0.009,94759.0,94749.0,0.17771335]
[1734964809332,0.00053187,94760.0,94758.0,0.211063]
[1734964809962,0.00026887,94760.0,94758.0,0.211063]
[1734964810396,0.00026887,94760.0,94759.0,0.20398632]
[1734964810809,0.09317101,94809.0,94771.0,0.311033]
[1734964811014,0.09317101,94809.0,94797.0,0.210976]
[1734964811217,0.30412301,94809.0,94774.0,0.1]
[1734964811421,0.10398632,94808.0,94775.0,0.10398632]
[1734964811633,0.10530476,94808.0,94775.0,0.10398632]
[1734964811833,0.210981,94796.0,94771.0,0.211034]
[1734964812082,0.15,94819.0,94772.0,0.10398632]
[1734964812287,0.2377836,94820.0,94784.0,0.211003]
[1734964812288,0.009,94809.0,94784.0,0.211003]
[1734964812495,0.00131863,94808.0,94785.0,0.14618782]
[1734964812757,0.210933,94817.0,94785.0,0.10956659]
[1734964812965,0.21092,94823.0,94785.0,0.10956659]
[1734964812966,0.210999,94787.0,94785.0,0.00558027]
[1734964813175,0.10530509,94786.0,94785.0,0.00558027]
[1734964813550,0.10530509,94786.0,94771.0,0.00015986]
[1734964813759,0.211022,94777.0,94771.0,0.00015986]
[1734964813963,0.21102,94778.0,94771.0,0.00015986]
[1734964814167,0.211008,94784.0,94771.0,0.00015986]
[1734964814321,0.21101,94782.0,94771.0,0.00015986]
[1734964814535,0.211014,94780.0,94771.0,0.00015986]
[1734964815116,0.002,94777.0,94771.0,0.00015986]
[1734964815523,0.211012,94782.0,94771.0,0.00015986]
[1734964815713,0.002,94780.0,94771.0,0.00015986]
[1734964816350,0.002,94780.0,94759.0,0.211061]
[1734964816599,0.002,94780.0,94772.0,0.00572743]
[1734964816802,0.002,94780.0,94772.0,0.211031]
[1734964817012,0.21099,94792.0,94774.0,0.211027]
[1734964817222,0.00131876,94791.0,94773.0,0.00337135]
[1734964817424,0.00131876,94791.0,94765.0,0.211046]
[1734964817425,0.002,94777.0,94770.0,0.211036]
[1734964817630,0.002,94777.0,94774.0,0.00572273]
[1734964817866,0.00131876,94788.0,94759.0,6.743e-05]
[1734964818073,0.007,94780.0,94775.0,0.00235348]
[1734964818305,0.007,94780.0,94759.0,6.743e-05]
[1734964818524,0.002,94780.0,94776.0,0.00235336]
[1734964818731,0.21101,94782.0,94760.0,0.211059]
[1734964818931,0.216022,94777.0,94759.0,6.743e-05]
[1734964819328,0.211023,94776.0,94759.0,6.743e-05]
[1734964819534,0.005,94777.0,94759.0,6.743e-05]
[1734964819535,0.005,94777.0,94759.0,0.21112743]
[1734964819729,0.005,94777.0,94765.0,0.211046]
[1734964819882,0.005,94777.0,94759.0,6.743e-05]
[1734964820084,0.002,94777.0,94759.0,6.743e-05]
[1734964820336,0.10398632,94776.0,94759.0,6.743e-05]
[1734964820608,0.21105,94765.0,94759.0,6.743e-05]
[1734964820823,0.211052,94763.0,94759.0,6.743e-05]
[1734964821006,0.211057,94761.0,94759.0,6.743e-05]
[1734964821212,0.00131919,94760.0,94759.0,6.743e-05]
[1734964821576,0.211044,94767.0,94759.0,6.743e-05]
[1734964821780,0.00131912,94766.0,94759.0,6.743e-05]
[1734964821986,0.008,94763.0,94759.0,6.743e-05]
[1734964822197,0.008,94763.0,94716.0,0.61449796]
[1734964822367,0.00815945,94763.0,94759.0,0.001]
[1734964822566,0.211059,94760.0,94741.0,0.211101]
[1734964822765,0.00815945,94763.0,94750.0,0.211081]
[1734964822967,0.00815945,94763.0,94742.0,0.00729823]
[1734964823416,0.211068,94757.0,94742.0,0.00729823]
[1734964823799,0.211097,94743.0,94742.0,0.00729823]
[1734964824010,0.211093,94745.0,94725.0,0.02139034]
[1734964824188,0.211093,94745.0,94726.0,0.10398632]
[1734964824434,0.211093,94745.0,94726.0,0.11134106]
[1734964824643,0.211091,94746.0,94727.0,0.211133]
[1734964824848,0.211104,94740.0,94726.0,0.00735474]
[1734964825059,0.211125,94731.0,94726.0,0.00735474]
[1734964825270,0.01653432,94741.0,94703.0,0.00286376]
[1734964825271,0.1966,94729.0,94703.0,0.00286376]
[1734964825486,0.25,94717.0,94703.0,0.00286376]
[1734964825688,0.2377836,94710.0,94687.0,0.1040196]
[1734964825888,0.1,94713.0,94687.0,0.1040196]
[1734964825889,0.21122,94688.0,94687.0,0.1040196]
[1734964826297,0.36122,94688.0,94687.0,0.1040196]
[1734964826510,0.46520632,94688.0,94687.0,0.0310196]
[1734964826927,0.46520632,94688.0,94687.0,0.0160196]
[1734964827195,0.10398632,94688.0,94687.0,0.0160196]
[1734964827396,0.009,94688.0,94687.0,0.0160196]
[1734964827600,0.25530666,94688.0,94687.0,0.0160196]
[1734964827709,0.25398632,94688.0,94687.0,0.0160196]
[1734964827913,0.26298632,94688.0,94687.0,0.0160196]
[1734964828170,0.25398632,94688.0,94687.0,0.0160196]
[1734964828573,0.26098632,94688.0,94687.0,0.0160196]
[1734964829039,0.12953399,94688.0,94687.0,0.0160196]
[1734964829445,0.13753399,94688.0,94687.0,0.0160196]
[1734964830074,0.12098632,94688.0,94687.0,0.0160196]
[1734964830285,0.11198632,94688.0,94687.0,0.0160196]
[1734964830695,0.26298632,94688.0,94687.0,0.0160196]
[1734964831118,0.25798632,94688.0,94687.0,0.0160196]
[1734964831314,0.25798632,94688.0,94621.0,0.05357252]
[1734964831315,0.04642748,94659.0,94621.0,0.05357252]
[1734964831515,0.00132058,94658.0,94632.0,0.02154467]
[1734964831734,0.07372748,94652.0,94622.0,0.00347131]
[1734964831952,0.15454377,94640.0,94633.0,0.00345693]
[1734964832118,0.07372748,94645.0,94615.0,0.02157491]
[1734964832329,0.22827125,94640.0,94616.0,0.10398632]
[1734964832485,0.22827125,94640.0,94609.0,0.211394]
[1734964832486,0.211353,94629.0,94609.0,0.211394]
[1734964832861,0.07372748,94639.0,94610.0,0.10398632]
[1734964833094,0.211324,94641.0,94617.0,0.211377]
[1734964833295,0.07372748,94640.0,94617.0,0.211377]
[1734964833493,0.07372748,94640.0,94611.0,0.211391]
[1734964833494,0.07372748,94637.0,94618.0,0.0066429]
[1734964833726,0.00015916,94645.0,94618.0,0.0066429]
[1734964833727,0.07372748,94638.0,94618.0,0.0066429]
[1734964833937,0.07372748,94638.0,94616.0,0.211378]
[1734964834152,0.07504835,94638.0,94619.0,0.00664272]
[1734964834364,0.211333,94637.0,94617.0,0.00664309]
[1734964834578,0.00015916,94645.0,94620.0,0.00250048]
[1734964834579,0.211369,94621.0,94620.0,0.00250048]
[1734964834786,0.07372748,94624.0,94600.0,0.01261503]
[1734964834989,0.211373,94620.0,94600.0,0.11660135]
[1734964835211,0.07504855,94619.0,94600.0,0.01261503]
[1734964835417,0.07504855,94619.0,94601.0,0.00194078]
[1734964835418,0.07372748,94604.0,94601.0,0.00194078]
[1734964835688,0.07372748,94608.0,94601.0,0.00194078]
[1734964835888,0.07372748,94608.0,94600.0,0.01261503]
[1734964835889,0.01655647,94604.0,94600.0,0.00955581]
[1734964836098,0.00132133,94603.0,94600.0,0.00955581]
[1734964836302,0.07372748,94617.0,94600.0,0.00955581]
[1734964836503,0.00132117,94616.0,94589.0,0.21144]
[1734964836722,0.00132117,94616.0,94591.0,0.211436]
[1734964836953,0.00132117,94616.0,94593.0,0.211432]
[1734964836954,0.211385,94614.0,94593.0,0.211432]
[1734964837163,0.07372748,94602.0,94592.0,0.00173966]
[1734964837372,0.07372748,94599.0,94594.0,0.00174122]
[1734964837581,0.211434,94592.0,94567.0,0.211489]
[1734964837803,0.211434,94592.0,94567.0,0.422978]
[1734964838011,0.211437,94591.0,94567.0,0.422978]
[1734964838275,0.07372748,94589.0,94558.0,0.0114229]
[1734964838508,0.211451,94585.0,94551.0,0.211525]
[1734964838716,0.211454,94583.0,94550.0,0.0144011]
[1734964838924,0.1777138,94582.0,94553.0,0.211521]
[1734964839131,0.07504921,94582.0,94553.0,0.211519]
[1734964839339,0.07504921,94582.0,94550.0,0.0144011]
[1734964839340,0.3277138,94582.0,94551.0,0.01149005]
[1734964839562,0.4277138,94582.0,94550.0,0.0144011]
[1734964839793,0.211526,94551.0,94550.0,0.0094011]
[1734964839975,0.07372748,94556.0,94550.0,0.0094011]
[1734964839976,0.211521,94553.0,94550.0,0.0094011]
[1734964840203,0.00132207,94552.0,94550.0,0.0094011]
[1734964840408,0.211523,94552.0,94550.0,0.0094011]
[1734964840631,0.07372748,94560.0,94550.0,0.0094011]
[1734964840838,0.211514,94556.0,94550.0,0.0094011]
[1734964841044,0.07372748,94557.0,94550.0,0.0094011]
[1734964841260,0.211561,94535.0,94534.0,7e-07]
[1734964841465,0.6392748,94535.0,94534.0,7e-07]
[1734964841673,0.53530648,94527.0,94526.0,7e-07]
[1734964841883,0.6847928,94527.0,94526.0,7e-07]
[1734964842119,0.8619928,94527.0,94526.0,7e-07]
[1734964842352,0.1,94506.0,94505.0,9.5e-07]
[1734964842561,0.25,94434.0,94423.0,0.0464]
[1734964842771,0.25,94434.0,94430.0,0.10398632]
[1734964842986,0.25,94434.0,94430.0,0.10577858]
[1734964843462,0.25,94434.0,94430.0,0.31757358]
[1734964843671,0.1219,94434.0,94433.0,0.10398632]
[1734964843890,0.1773,94505.0,94433.0,0.10398632]
[1734964843891,0.1,94485.0,94456.0,0.211738]
[1734964844097,0.1,94485.0,94433.0,0.16696008]
[1734964844098,0.211693,94476.0,94433.0,0.06476547]
[1734964844314,0.1,94471.0,94457.0,0.00178725]
[1734964844525,0.1,94500.0,94440.0,0.211773]
[1734964844526,0.1,94482.0,94440.0,0.23883881]
[1734964844734,0.01658348,94466.0,94459.0,0.211732]
[1734964844953,0.01658348,94466.0,94452.0,0.02161835]
[1734964844954,0.211636,94502.0,94460.0,0.10398632]
[1734964845179,0.1,94498.0,94460.0,0.10606693]
[1734964845414,0.211649,94496.0,94470.0,0.211705]
[1734964845672,0.005,94471.0,94460.0,0.00208061]
[1734964845884,0.005,94471.0,94449.0,0.211754]
[1734964846094,0.005,94471.0,94450.0,0.10398632]
[1734964846508,0.005,94471.0,94451.0,0.02998632]
[1734964846715,0.211701,94473.0,94452.0,0.211746]
[1734964846945,0.00015869,94483.0,94453.0,0.10398632]
[1734964847152,0.00015869,94483.0,94472.0,0.211701]
[1734964847381,0.00015869,94483.0,94453.0,0.10398632]
[1734964847583,0.00015869,94483.0,94450.0,0.23883881]
[1734964847584,0.00015869,94483.0,94482.0,0.21168]
[1734964847798,0.21183669,94483.0,94454.0,0.10398632]
[1734964848007,0.002,94473.0,94438.0,0.10398632]
[1734964848213,0.211725,94462.0,94440.0,0.02110353]
[1734964848473,0.1,94494.0,94450.0,0.23883881]
[1734964848676,0.00115869,94483.0,94466.0,0.211715]
[1734964848887,0.1,94480.0,94461.0,0.02109929]
[1734964849098,0.1,94480.0,94440.0,0.10398632]
[1734964849099,0.211704,94472.0,94440.0,0.10398632]
[1734964849306,0.211693,94476.0,94440.0,0.10398632]
[1734964849515,0.1,94477.0,94440.0,0.10398632]
[1734964849719,0.1,94470.0,94440.0,0.10398632]
[1734964849920,0.211727,94461.0,94437.0,0.23335333]
[1734964850126,0.104,94462.0,94432.0,0.21179]
[1734964850343,0.211751,94451.0,94427.0,0.02122865]
[1734964850550,0.10398632,94460.0,94416.0,0.13707]
[1734964850551,0.1,94441.0,94416.0,0.13707]
[1734964850757,0.1,94441.0,94421.0,0.211815]
[1734964850967,0.0752,94450.0,94427.0,0.10398632]
[1734964851230,0.1,94468.0,94428.0,0.03161733]
[1734964851437,0.0826,94470.0,94447.0,0.02088085]
[1734964851645,0.10015866,94468.0,94433.0,0.21179]
[1734964851855,0.311729,94461.0,94438.0,0.211779]
[1734964852064,0.311729,94461.0,94448.0,0.00223052]
[1734964852277,0.00015866,94468.0,94449.0,0.10398632]
[1734964852484,0.00015866,94468.0,94463.0,0.211721]
[1734964852694,0.00015866,94468.0,94457.0,0.211736]
[1734964852866,0.00015866,94468.0,94463.0,0.211721]
[1734964853103,0.00015866,94468.0,94458.0,0.00305871]
[1734964853309,0.00015866,94468.0,94430.0,0.23883881]
[1734964853310,0.10015866,94468.0,94427.0,8.57e-05]
[1734964853513,0.21173,94460.0,94430.0,0.211797]
[1734964853740,0.211754,94450.0,94427.0,8.57e-05]
[1734964853943,0.1,94437.0,94431.0,0.00184428]
[1734964854153,0.1,94442.0,94427.0,8.57e-05]
[1734964854362,0.1,94429.0,94427.0,8.57e-05]
[1734964854565,0.211797,94430.0,94427.0,8.57e-05]
[1734964854783,0.2118,94429.0,94427.0,8.57e-05]
[1734964855033,0.21179,94433.0,94427.0,8.57e-05]
[1734964855445,0.00015857,94433.0,94427.0,8.57e-05]
[1734964855850,0.00015857,94433.0,94428.0,0.211801]
[1734964856264,0.00015857,94433.0,94430.0,0.211797]
[1734964856468,0.00015857,94433.0,94416.0,0.06352771]
[1734964856675,0.21195057,94433.0,94416.0,0.06352771]
[1734964857660,0.211792,94432.0,94416.0,0.06352771]
[1734964857958,0.1,94429.0,94416.0,0.06352771]
[1734964858369,0.076,94425.0,94416.0,0.06352771]
[1734964858629,0.211815,94422.0,94416.0,0.06352771]
[1734964858836,0.1,94417.0,94416.0,0.06352771]
[1734964859043,0.211821,94420.0,94416.0,0.06352771]
[1734964859258,0.1,94417.0,94416.0,0.06352771]
[1734964859380,0.20398632,94417.0,94416.0,0.06352771]
[1734964859795,0.20531039,94417.0,94416.0,0.06352771]
[1734964860205,0.1,94414.0,94395.0,0.211874]
[1734964860409,0.002,94420.0,94406.0,0.04039651]
[1734964860605,0.002,94420.0,94406.0,0.03314623]
[1734964860837,0.24,94422.0,94406.0,0.03314623]
[1734964861042,0.211817,94421.0,94406.0,0.03314623]
[1734964861243,0.211844,94409.0,94406.0,0.03314623]
[1734964861440,0.1,94403.0,94368.0,0.211935]
[1734964861759,0.1,94414.0,94380.0,0.23883881]
[1734964861977,0.001,94417.0,94409.0,0.211842]
[1734964862181,0.001,94417.0,94416.0,0.211828]
[1734964862730,0.14,94422.0,94419.0,0.211821]
[1734964862906,0.14015854,94422.0,94419.0,0.211821]
[1734964863107,0.14015854,94422.0,94420.0,0.10398632]
[1734964863532,0.14015854,94422.0,94420.0,0.31580532]
[1734964863747,0.1,94451.0,94420.0,0.31580532]
[1734964863748,0.1,94457.0,94426.0,0.211804]
[1734964863995,0.0478,94469.0,94420.0,0.10398632]
[1734964863996,0.00016037,94451.0,94430.0,0.10398632]
[1734964864200,0.00016037,94451.0,94450.0,0.211752]
[1734964864561,0.1,94488.0,94471.0,0.211704]
[1734964864759,0.0792,94495.0,94482.0,0.21168]
[1734964865085,0.0478,94506.0,94482.0,0.31566632]
[1734964865286,0.0792,94515.0,94503.0,0.211632]
[1734964865524,0.0792,94515.0,94497.0,0.211645]
[1734964865726,0.1,94493.0,94434.0,0.211788]
[1734964865931,0.1,94481.0,94442.0,0.01138491]
[1734964866181,0.1,94473.0,94443.0,0.10398632]
[1734964866392,0.1,94473.0,94443.0,0.02998632]
[1734964866595,0.211702,94472.0,94443.0,0.02998632]
[1734964866803,0.1,94461.0,94450.0,0.003]
[1734964867007,0.0802,94472.0,94450.0,0.003]
[1734964867008,0.00132343,94460.0,94450.0,0.003]
[1734964867217,0.211729,94460.0,94440.0,0.211773]
[1734964867443,0.211729,94460.0,94437.0,0.02171728]
[1734964867444,0.1,94455.0,94436.0,0.211783]
[1734964867647,0.102,94473.0,94448.0,0.211755]
[1734964868054,0.211719,94465.0,94442.0,0.21177]
[1734964868267,0.211719,94465.0,94444.0,0.211765]
[1734964868474,0.311705,94471.0,94450.0,0.211751]
[1734964868692,0.311705,94471.0,94440.0,0.00053187]
[1734964868693,0.002,94473.0,94451.0,0.13556005]
[1734964868865,0.0829,94490.0,94468.0,0.211711]
[1734964869098,0.211605,94516.0,94479.0,0.211686]
[1734964869099,0.1,94507.0,94479.0,0.211686]
[1734964869307,0.0829,94516.0,94480.0,0.10398632]
[1734964869516,0.260101,94518.0,94486.0,0.1]
[1734964869517,0.0485,94518.0,94486.0,0.1]
[1734964869749,0.0757,94538.0,94500.0,0.23883881]
[1734964869981,0.0473,94546.0,94487.0,0.05928251]
[1734964869982,0.0473,94546.0,94510.0,0.10398632]
[1734964870215,0.21161,94514.0,94487.0,0.05928251]
[1734964870415,0.211597,94520.0,94487.0,0.05928251]
[1734964870416,0.211597,94520.0,94488.0,0.10398632]
[1734964870620,0.1,94526.0,94489.0,0.01632688]
[1734964870826,0.211584,94525.0,94501.0,0.211637]